[Event "*** Titled Tuesday Blitz"]
[Site "Chess.com"]
[Date "2018.09.04"]
[Round "10"]
[White "nihalsarin"]
[Black "gkchesstiger"]
[Result "1/2-1/2"]
[WhiteElo "2854"]
[BlackElo "2762"]
[TimeControl "180+2"]
[EndTime "15:52:58 PDT"]
[Termination "Game drawn by agreement"]

1. e4 {[%clk 0:03:01.9]} 1... c5 {[%clk 0:02:59.7]} 2. Nc3 {[%clk 0:03:00.9]}
2... Nc6 {[%clk 0:02:58.2]} 3. Bb5 {[%clk 0:03:02.4]} 3... Nd4 {[%clk
0:02:38.3]} 4. Nf3 {[%clk 0:03:02.6]} 4... e6 {[%clk 0:02:32.1]} 5. O-O {[%clk
0:03:02.1]} 5... a6 {[%clk 0:02:32.6]} 6. Bd3 {[%clk 0:03:02.9]} 6... Nxf3+
{[%clk 0:02:22.4]} 7. Qxf3 {[%clk 0:03:02.7]} 7... Ne7 {[%clk 0:02:20.7]} 8. Re1
{[%clk 0:02:59.3]} 8... Ng6 {[%clk 0:02:19.3]} 9. Bf1 {[%clk 0:02:59.3]} 9...
Bd6 {[%clk 0:02:17.7]} 10. g3 {[%clk 0:02:58.8]} 10... h5 {[%clk 0:02:13.8]} 11.
d3 {[%clk 0:02:51.7]} 11... h4 {[%clk 0:02:12.9]} 12. Qg4 {[%clk 0:02:34.6]}
12... hxg3 {[%clk 0:01:59.5]} 13. hxg3 {[%clk 0:02:36.5]} 13... Ne5 {[%clk
0:01:59.3]} 14. Qe2 {[%clk 0:02:34.9]} 14... g5 {[%clk 0:01:50.7]} 15. Bg2
{[%clk 0:02:27.4]} 15... Rg8 {[%clk 0:01:41.2]} 16. Be3 {[%clk 0:02:20.7]} 16...
b6 {[%clk 0:01:37.6]} 17. d4 {[%clk 0:02:20.7]} 17... cxd4 {[%clk 0:01:37.3]}
18. Bxd4 {[%clk 0:02:22.6]} 18... Bb7 {[%clk 0:01:37.1]} 19. Rad1 {[%clk
0:01:54]} 19... Qc7 {[%clk 0:01:36.5]} 20. Qe3 {[%clk 0:00:18.9]} 20... Bc5
{[%clk 0:00:59.5]} 21. Na4 {[%clk 0:00:15.4]} 21... Bxd4 {[%clk 0:00:59.4]} 22.
Qxd4 {[%clk 0:00:17.3]} 22... b5 {[%clk 0:00:49]} 23. Nc5 {[%clk 0:00:18.7]}
23... Bc6 {[%clk 0:00:49.5]} 24. Nd3 {[%clk 0:00:20.2]} 24... f6 {[%clk
0:00:45.4]} 25. Nxe5 {[%clk 0:00:19.4]} 25... Qxe5 {[%clk 0:00:45.8]} 26. c3
{[%clk 0:00:19.1]} 26... a5 {[%clk 0:00:31.4]} 27. Rd2 {[%clk 0:00:19.1]} 27...
Ke7 {[%clk 0:00:30.2]} 28. Red1 {[%clk 0:00:20.3]} 28... Rab8 {[%clk 0:00:25]}
29. Qa7 {[%clk 0:00:20.6]} 29... Rgd8 {[%clk 0:00:21.7]} 30. Qxa5 {[%clk
0:00:21.2]} 30... Kf7 {[%clk 0:00:20.5]} 31. Qb4 {[%clk 0:00:22.7]} 31... Ra8
{[%clk 0:00:21.6]} 32. a3 {[%clk 0:00:24.1]} 32... Ra4 {[%clk 0:00:22.3]} 33.
Qd6 {[%clk 0:00:25.7]} 33... Qxd6 {[%clk 0:00:22.9]} 34. Rxd6 {[%clk 0:00:27.6]}
34... Ke7 {[%clk 0:00:23.8]} 35. e5 {[%clk 0:00:28.7]} 35... Bxg2 {[%clk
0:00:24.8]} 36. exf6+ {[%clk 0:00:30.3]} 36... Kxf6 {[%clk 0:00:26]} 37. Kxg2
{[%clk 0:00:32.2]} 37... Ke7 {[%clk 0:00:27.1]} 38. R6d4 {[%clk 0:00:33.8]}
38... Ra5 {[%clk 0:00:26.5]} 39. Re1 {[%clk 0:00:34]} 39... Rc8 {[%clk
0:00:27.1]} 40. Re5 {[%clk 0:00:34.3]} 40... Kf6 {[%clk 0:00:28.3]} 41. Re3
{[%clk 0:00:34.7]} 41... Rc7 {[%clk 0:00:28]} 42. Rb4 {[%clk 0:00:35.2]} 42...
Rc5 {[%clk 0:00:28.4]} 43. Rf3+ {[%clk 0:00:36.4]} 43... Ke7 {[%clk 0:00:29]}
44. Rg4 {[%clk 0:00:34.5]} 44... Ra8 {[%clk 0:00:27.9]} 45. Rd4 {[%clk
0:00:35.7]} 45... Rac8 {[%clk 0:00:27.8]} 46. Rfd3 {[%clk 0:00:36.6]} 46... R8c7
{[%clk 0:00:28.6]} 47. Kf3 {[%clk 0:00:37.2]} 47... Re5 {[%clk 0:00:29.1]} 48.
Re3 {[%clk 0:00:37]} 48... Rf5+ {[%clk 0:00:29.7]} 49. Kg2 {[%clk 0:00:38]}
49... Rfc5 {[%clk 0:00:30]} 50. Rd1 {[%clk 0:00:39.2]} 50... Rf5 {[%clk
0:00:30.2]} 51. Rh1 {[%clk 0:00:40.4]} 51... Rd5 {[%clk 0:00:30.4]} 52. Rh7+
{[%clk 0:00:41.7]} 52... Kd6 {[%clk 0:00:31.4]} 53. Rg7 {[%clk 0:00:43.2]} 53...
Rcc5 {[%clk 0:00:30.6]} 54. Kf3 {[%clk 0:00:05.9]} 1/2-1/2

[Event "*** Titled Tuesday Blitz"]
[Site "Chess.com"]
[Date "2018.09.04"]
[Round "10"]
[White "lavr92"]
[Black "Alopekos"]
[Result "1-0"]
[WhiteElo "2603"]
[BlackElo "2449"]
[TimeControl "180+2"]
[EndTime "15:52:59 PDT"]
[Termination "lavr92 won by resignation"]

1. d4 {[%clk 0:03:01.9]} 1... Nf6 {[%clk 0:03:00.4]} 2. c4 {[%clk 0:03:02.1]}
2... e6 {[%clk 0:03:00.4]} 3. Nc3 {[%clk 0:03:03.1]} 3... d5 {[%clk 0:03:01.9]}
4. cxd5 {[%clk 0:03:02.4]} 4... Nxd5 {[%clk 0:03:03.8]} 5. e4 {[%clk 0:03:02.5]}
5... Nxc3 {[%clk 0:03:05.3]} 6. bxc3 {[%clk 0:03:04.4]} 6... c5 {[%clk
0:03:06.9]} 7. Nf3 {[%clk 0:03:05.8]} 7... cxd4 {[%clk 0:03:08.4]} 8. cxd4
{[%clk 0:03:07.2]} 8... Bb4+ {[%clk 0:03:10]} 9. Bd2 {[%clk 0:03:07.8]} 9...
Bxd2+ {[%clk 0:03:11.5]} 10. Qxd2 {[%clk 0:03:09.7]} 10... O-O {[%clk
0:03:12.8]} 11. Bc4 {[%clk 0:03:10.6]} 11... Nd7 {[%clk 0:03:14.2]} 12. O-O
{[%clk 0:03:11.7]} 12... b6 {[%clk 0:03:15.7]} 13. Rad1 {[%clk 0:03:11.5]} 13...
Bb7 {[%clk 0:03:16.2]} 14. Rfe1 {[%clk 0:03:12.9]} 14... Rc8 {[%clk 0:03:16.4]}
15. Bd3 {[%clk 0:03:14.1]} 15... Nf6 {[%clk 0:03:12.5]} 16. Bb1 {[%clk 0:03:04]}
16... b5 {[%clk 0:01:42.5]} 17. h3 {[%clk 0:02:51.9]} 17... a5 {[%clk 0:00:53]}
18. Qf4 {[%clk 0:02:32.4]} 18... Qc7 {[%clk 0:00:49.8]} 19. Qh4 {[%clk 0:02:31]}
19... h6 {[%clk 0:00:34.9]} 20. Re3 {[%clk 0:02:12.6]} 20... Rfd8 {[%clk
0:00:28.5]} 21. Ne5 {[%clk 0:01:22.9]} 21... Nd7 {[%clk 0:00:27.5]} 22. Ng4
{[%clk 0:01:18.4]} 22... Nf8 {[%clk 0:00:24.3]} 23. Nxh6+ {[%clk 0:00:58.3]}
23... gxh6 {[%clk 0:00:26.2]} 24. Qxh6 {[%clk 0:00:59.6]} 24... e5 {[%clk
0:00:10.5]} 25. Rg3+ {[%clk 0:00:57.1]} 25... Ng6 {[%clk 0:00:11.3]} 26. h4
{[%clk 0:00:56.2]} 26... Rxd4 {[%clk 0:00:11.3]} 27. Rf1 {[%clk 0:00:48.5]}
27... Qe7 {[%clk 0:00:03.4]} 28. h5 {[%clk 0:00:45.1]} 28... Qh4 {[%clk
0:00:03.7]} 29. Rh3 {[%clk 0:00:42.9]} 29... Qf4 {[%clk 0:00:04.8]} 30. hxg6
{[%clk 0:00:43.7]} 30... Qxh6 {[%clk 0:00:05.8]} 31. gxf7+ {[%clk 0:00:43.6]}
31... Kxf7 {[%clk 0:00:07.2]} 32. Rxh6 {[%clk 0:00:44.3]} 32... Bxe4 {[%clk
0:00:07.4]} 33. f4 {[%clk 0:00:32.2]} 33... Kg7 {[%clk 0:00:05]} 34. Rb6 {[%clk
0:00:24.6]} 34... exf4 {[%clk 0:00:04.7]} 35. Rxb5 {[%clk 0:00:20.6]} 35... Bxb1
{[%clk 0:00:05.4]} 36. Rfxb1 {[%clk 0:00:18.2]} 36... Rc2 {[%clk 0:00:07.3]} 37.
R1b2 {[%clk 0:00:17.9]} 37... Rdd2 {[%clk 0:00:06.3]} 38. Rxc2 {[%clk
0:00:18.3]} 38... Rxc2 {[%clk 0:00:08.2]} 39. Rxa5 {[%clk 0:00:19.6]} 39... Kf6
{[%clk 0:00:09.5]} 40. a4 {[%clk 0:00:18.6]} 40... Ra2 {[%clk 0:00:10.4]} 41.
Kf1 {[%clk 0:00:19.5]} 41... Ke6 {[%clk 0:00:10.8]} 42. Kg1 {[%clk 0:00:16.4]}
42... Kd6 {[%clk 0:00:08.1]} 43. Kh1 {[%clk 0:00:16.5]} 43... Ke6 {[%clk
0:00:05.9]} 44. Kg1 {[%clk 0:00:15.4]} 44... Kd6 {[%clk 0:00:04.8]} 45. Ra8
{[%clk 0:00:10.4]} 45... Kc7 {[%clk 0:00:04.3]} 46. a5 {[%clk 0:00:10.9]} 46...
Kb7 {[%clk 0:00:05.6]} 47. Rf8 {[%clk 0:00:12.2]} 47... Rxa5 {[%clk 0:00:05.6]}
48. Rxf4 {[%clk 0:00:13.2]} 48... Kc6 {[%clk 0:00:06.1]} 49. Rd4 {[%clk
0:00:14.1]} 49... Rd5 {[%clk 0:00:07.2]} 50. Rxd5 {[%clk 0:00:14.5]} 50... Kxd5
{[%clk 0:00:09.1]} 51. Kh2 {[%clk 0:00:16]} 51... Ke4 {[%clk 0:00:08.1]} 52. Kh3
{[%clk 0:00:17.2]} 52... Kf5 {[%clk 0:00:09]} 53. Kh4 {[%clk 0:00:18.3]} 53...
Kf6 {[%clk 0:00:06]} 54. Kh5 {[%clk 0:00:19.5]} 54... Kg7 {[%clk 0:00:04.9]} 55.
Kg5 {[%clk 0:00:20.1]} 55... Kf7 {[%clk 0:00:06.3]} 56. Kh6 {[%clk 0:00:20.8]}
56... Kf6 {[%clk 0:00:07.5]} 57. g4 {[%clk 0:00:21.6]} 57... Kf7 {[%clk
0:00:09.4]} 1-0

[Event "*** Titled Tuesday Blitz"]
[Site "Chess.com"]
[Date "2018.09.04"]
[Round "10"]
[White "DanielNaroditsky"]
[Black "Cryptochess"]
[Result "1-0"]
[WhiteElo "2949"]
[BlackElo "2544"]
[TimeControl "180+2"]
[EndTime "15:53:01 PDT"]
[Termination "DanielNaroditsky won by resignation"]

1. d4 {[%clk 0:03:01.9]} 1... Nf6 {[%clk 0:03:00.8]} 2. Bf4 {[%clk 0:03:03.5]}
2... g6 {[%clk 0:02:59.8]} 3. Nc3 {[%clk 0:03:04.9]} 3... d6 {[%clk 0:03:00.6]}
4. e4 {[%clk 0:03:05.9]} 4... c6 {[%clk 0:03:02.3]} 5. Nf3 {[%clk 0:03:05.8]}
5... b5 {[%clk 0:03:03.5]} 6. e5 {[%clk 0:03:06.3]} 6... b4 {[%clk 0:03:04.9]}
7. exf6 {[%clk 0:03:02.4]} 7... bxc3 {[%clk 0:03:06.1]} 8. fxe7 {[%clk
0:02:57.5]} 8... Qxe7+ {[%clk 0:03:05.2]} 9. Be2 {[%clk 0:02:59.1]} 9... cxb2
{[%clk 0:03:05.4]} 10. Rb1 {[%clk 0:03:00.5]} 10... Bg7 {[%clk 0:02:52.7]} 11.
O-O {[%clk 0:03:01.5]} 11... O-O {[%clk 0:02:53.4]} 12. Rxb2 {[%clk 0:03:02.8]}
12... Ba6 {[%clk 0:02:44]} 13. c4 {[%clk 0:02:32.1]} 13... c5 {[%clk 0:02:30.7]}
14. Rd2 {[%clk 0:02:08.8]} 14... Re8 {[%clk 0:02:12.7]} 15. dxc5 {[%clk
0:02:08.7]} 15... dxc5 {[%clk 0:02:12.1]} 16. Bd6 {[%clk 0:02:09.1]} 16... Qe4
{[%clk 0:01:51.4]} 17. Ng5 {[%clk 0:02:06.2]} 17... Qf5 {[%clk 0:01:49.7]} 18.
Rd5 {[%clk 0:01:43.3]} 18... Be5 {[%clk 0:01:31.7]} 19. Bxe5 {[%clk 0:01:26.3]}
19... Rxe5 {[%clk 0:01:32.2]} 20. Rxe5 {[%clk 0:01:21.5]} 20... Qxe5 {[%clk
0:01:28.7]} 21. Bf3 {[%clk 0:01:10.9]} 21... Qxg5 {[%clk 0:01:23.4]} 22. Bxa8
{[%clk 0:01:11.6]} 22... Bxc4 {[%clk 0:01:24.7]} 23. Re1 {[%clk 0:01:09]} 23...
Na6 {[%clk 0:00:39]} 24. Qc1 {[%clk 0:00:56.9]} 24... Qxc1 {[%clk 0:00:34.2]}
25. Rxc1 {[%clk 0:00:58.8]} 25... Bxa2 {[%clk 0:00:35.2]} 26. Bb7 {[%clk
0:01:00.1]} 26... Nb4 {[%clk 0:00:23.7]} 27. Rxc5 {[%clk 0:01:00.9]} 27... a6
{[%clk 0:00:25.4]} 28. Ra5 {[%clk 0:00:57.3]} 28... Bb3 {[%clk 0:00:14.2]} 29.
Bxa6 {[%clk 0:00:58.6]} 29... Nxa6 {[%clk 0:00:15.1]} 30. Rxa6 {[%clk
0:01:00.5]} 30... Kg7 {[%clk 0:00:16.5]} 31. Rb6 {[%clk 0:01:01]} 31... Be6
{[%clk 0:00:17.3]} 32. f4 {[%clk 0:01:02.3]} 32... h5 {[%clk 0:00:18.8]} 33. Kf2
{[%clk 0:01:02.5]} 33... Kf6 {[%clk 0:00:20.2]} 34. Ke3 {[%clk 0:01:02.3]} 34...
Kf5 {[%clk 0:00:21.5]} 35. Rb5+ {[%clk 0:01:02.5]} 35... Kf6 {[%clk 0:00:22.8]}
36. g3 {[%clk 0:00:58.3]} 36... Bf5 {[%clk 0:00:23.2]} 37. Rb6+ {[%clk
0:00:58.4]} 37... Be6 {[%clk 0:00:24.5]} 38. Ke4 {[%clk 0:00:59.7]} 38... Kg7
{[%clk 0:00:22.6]} 39. Ke5 {[%clk 0:00:57.2]} 39... Bf5 {[%clk 0:00:21.6]} 40.
Rb7 {[%clk 0:00:55.5]} 40... Be6 {[%clk 0:00:19.4]} 41. Rc7 {[%clk 0:00:55.7]}
41... Bf5 {[%clk 0:00:15.1]} 42. Rc6 {[%clk 0:00:57]} 42... Bg4 {[%clk
0:00:15.5]} 43. Kd6 {[%clk 0:00:50.8]} 43... Bf5 {[%clk 0:00:14.7]} 44. Ke7
{[%clk 0:00:50.9]} 44... Be4 {[%clk 0:00:14.4]} 45. Rc5 {[%clk 0:00:47.6]} 45...
Bf5 {[%clk 0:00:11.4]} 46. Rc7 {[%clk 0:00:39.8]} 46... Be6 {[%clk 0:00:09.2]}
47. Rc3 {[%clk 0:00:32]} 47... Bf5 {[%clk 0:00:05.6]} 48. Re3 {[%clk 0:00:33.7]}
48... Bc2 {[%clk 0:00:03.1]} 49. Kd6 {[%clk 0:00:28.2]} 49... Bf5 {[%clk
0:00:03.9]} 50. Ke5 {[%clk 0:00:29.9]} 50... Bg4 {[%clk 0:00:05.4]} 51. Rc3
{[%clk 0:00:31]} 51... Be6 {[%clk 0:00:07]} 52. Rc6 {[%clk 0:00:31.9]} 52... Bg4
{[%clk 0:00:08.9]} 53. h4 {[%clk 0:00:33.2]} 53... Bf5 {[%clk 0:00:10.2]} 54.
Rf6 {[%clk 0:00:33.9]} 54... Bg4 {[%clk 0:00:11.6]} 55. Rd6 {[%clk 0:00:34.6]}
55... Bf5 {[%clk 0:00:12.8]} 56. Rd8 {[%clk 0:00:35.6]} 56... Bg4 {[%clk
0:00:14]} 57. Kd6 {[%clk 0:00:37.4]} 57... Be6 {[%clk 0:00:15.4]} 58. Ke7 {[%clk
0:00:38.9]} 58... Bf5 {[%clk 0:00:14.9]} 59. Rd6 {[%clk 0:00:40.1]} 59... Bc2
{[%clk 0:00:13.1]} 60. Rf6 {[%clk 0:00:41]} 60... Bb3 {[%clk 0:00:14.5]} 61. f5
{[%clk 0:00:42.7]} 61... Ba2 {[%clk 0:00:12.4]} 62. Ra6 {[%clk 0:00:42.3]} 62...
Bc4 {[%clk 0:00:11.1]} 63. f6+ {[%clk 0:00:42.6]} 63... Kh6 {[%clk 0:00:12.7]}
64. Ra8 {[%clk 0:00:41.6]} 64... g5 {[%clk 0:00:10.7]} 65. Rh8+ {[%clk
0:00:41.9]} 65... Kg6 {[%clk 0:00:12.3]} 66. Rg8+ {[%clk 0:00:43.4]} 66... Kh6
{[%clk 0:00:14]} 67. hxg5+ {[%clk 0:00:43.8]} 67... Kh7 {[%clk 0:00:11.2]} 1-0

[Event "*** Titled Tuesday Blitz"]
[Site "Chess.com"]
[Date "2018.09.04"]
[Round "10"]
[White "MFBerna"]
[Black "champ2005"]
[Result "0-1"]
[WhiteElo "2376"]
[BlackElo "2731"]
[TimeControl "180+2"]
[EndTime "15:53:02 PDT"]
[Termination "champ2005 won by resignation"]

1. e4 {[%clk 0:03:01.9]} 1... c6 {[%clk 0:03:00.9]} 2. d4 {[%clk 0:03:02.6]}
2... d5 {[%clk 0:03:01.6]} 3. exd5 {[%clk 0:03:00]} 3... cxd5 {[%clk 0:03:02.3]}
4. c4 {[%clk 0:03:01.5]} 4... Nf6 {[%clk 0:03:02.8]} 5. Nf3 {[%clk 0:03:02.2]}
5... Nc6 {[%clk 0:03:02.4]} 6. Nc3 {[%clk 0:03:01.9]} 6... Bg4 {[%clk
0:03:02.8]} 7. Qb3 {[%clk 0:02:55.8]} 7... Bxf3 {[%clk 0:03:01.1]} 8. gxf3
{[%clk 0:02:35.3]} 8... Nxd4 {[%clk 0:03:00.9]} 9. Qd1 {[%clk 0:02:21.8]} 9...
e5 {[%clk 0:02:46]} 10. Be3 {[%clk 0:02:22.3]} 10... Bd6 {[%clk 0:02:36.7]} 11.
Qa4+ {[%clk 0:02:14.1]} 11... Qd7 {[%clk 0:02:33.5]} 12. Qxd7+ {[%clk
0:02:15.1]} 12... Kxd7 {[%clk 0:02:32.4]} 13. Bxd4 {[%clk 0:02:08.4]} 13... exd4
{[%clk 0:02:33]} 14. Nxd5 {[%clk 0:02:09.6]} 14... Nxd5 {[%clk 0:02:33.9]} 15.
cxd5 {[%clk 0:02:11.5]} 15... Rhe8+ {[%clk 0:02:32.2]} 16. Kd2 {[%clk
0:02:05.6]} 16... g6 {[%clk 0:02:26.7]} 17. Bb5+ {[%clk 0:02:06.2]} 17... Kc7
{[%clk 0:02:27]} 18. Bxe8 {[%clk 0:02:08.1]} 18... Rxe8 {[%clk 0:02:27.7]} 19.
Rac1+ {[%clk 0:02:07.1]} 19... Kd7 {[%clk 0:02:28.9]} 20. Kd3 {[%clk 0:02:01.1]}
20... Re5 {[%clk 0:02:25.2]} 21. Kxd4 {[%clk 0:01:57]} 21... Rf5 {[%clk
0:02:26.3]} 22. f4 {[%clk 0:01:37.2]} 22... Rxf4+ {[%clk 0:02:26.5]} 23. Ke3
{[%clk 0:01:36.8]} 23... Rf5 {[%clk 0:02:26.4]} 24. Ke2 {[%clk 0:01:25.8]} 24...
Re5+ {[%clk 0:02:24]} 25. Kf3 {[%clk 0:01:23.5]} 25... Rf5+ {[%clk 0:02:18]} 26.
Kg2 {[%clk 0:01:19.6]} 26... Rg5+ {[%clk 0:02:18.9]} 27. Kf3 {[%clk 0:01:17.7]}
27... Rxd5 {[%clk 0:02:02.7]} 28. Rhd1 {[%clk 0:01:13.9]} 28... Rf5+ {[%clk
0:02:02.1]} 29. Kg2 {[%clk 0:01:13.5]} 29... Ke7 {[%clk 0:02:01.1]} 30. Re1+
{[%clk 0:01:03.4]} 30... Kf6 {[%clk 0:02:00.4]} 31. Rcd1 {[%clk 0:00:39.9]}
31... Bc5 {[%clk 0:01:59.8]} 32. Re2 {[%clk 0:00:41.3]} 32... b6 {[%clk
0:01:59.8]} 33. Rd3 {[%clk 0:00:42]} 33... Kg7 {[%clk 0:01:59.6]} 34. Rf3 {[%clk
0:00:41]} 34... Rg5+ {[%clk 0:02:00.4]} 35. Rg3 {[%clk 0:00:41.9]} 35... Rd5
{[%clk 0:02:00]} 36. a3 {[%clk 0:00:40.7]} 36... a5 {[%clk 0:02:01]} 37. h4
{[%clk 0:00:32.3]} 37... h5 {[%clk 0:01:55.4]} 38. Rf3 {[%clk 0:00:32.4]} 38...
Rd4 {[%clk 0:01:55.1]} 39. Kh3 {[%clk 0:00:31.1]} 39... Kf8 {[%clk 0:01:45.9]}
40. Rc2 {[%clk 0:00:30.2]} 40... Be7 {[%clk 0:01:22.5]} 41. Rc8+ {[%clk
0:00:25.8]} 41... Kg7 {[%clk 0:01:23.3]} 42. Rc7 {[%clk 0:00:25.5]} 42... Rxh4+
{[%clk 0:01:23.3]} 43. Kg2 {[%clk 0:00:25.8]} 43... Re4 {[%clk 0:01:19]} 44. Rb7
{[%clk 0:00:19.2]} 44... Re6 {[%clk 0:01:16.8]} 45. Re3 {[%clk 0:00:17.3]} 45...
Rxe3 {[%clk 0:01:13.2]} 46. fxe3 {[%clk 0:00:19.2]} 46... Bc5 {[%clk 0:01:14.4]}
47. e4 {[%clk 0:00:17.2]} 47... g5 {[%clk 0:01:12.5]} 48. Rc7 {[%clk 0:00:09.6]}
48... Kg6 {[%clk 0:01:08.7]} 49. Rc6+ {[%clk 0:00:10.7]} 49... Kg7 {[%clk
0:01:07.2]} 50. Kf3 {[%clk 0:00:08.5]} 50... Bd4 {[%clk 0:01:05.9]} 51. b4
{[%clk 0:00:07]} 51... axb4 {[%clk 0:01:05.3]} 52. axb4 {[%clk 0:00:08.9]} 52...
b5 {[%clk 0:01:06.3]} 53. e5 {[%clk 0:00:06.9]} 53... Bxe5 {[%clk 0:01:06.1]}
54. Rc5 {[%clk 0:00:07.7]} 54... f6 {[%clk 0:01:07]} 55. Rxb5 {[%clk 0:00:08.6]}
55... g4+ {[%clk 0:01:08.5]} 56. Ke4 {[%clk 0:00:06.2]} 56... h4 {[%clk
0:01:07.5]} 57. Rb7+ {[%clk 0:00:06.8]} 57... Kg6 {[%clk 0:01:08.1]} 58. Ra7
{[%clk 0:00:05.6]} 58... h3 {[%clk 0:01:06.9]} 59. Ra8 {[%clk 0:00:06.1]} 59...
Kg7 {[%clk 0:01:02.7]} 60. Ra7+ {[%clk 0:00:06.9]} 60... Kg6 {[%clk 0:01:01.6]}
61. Ra8 {[%clk 0:00:08.2]} 61... g3 {[%clk 0:01:02.5]} 62. Rh8 {[%clk
0:00:08.4]} 62... g2 {[%clk 0:01:02.1]} 63. Rg8+ {[%clk 0:00:03.9]} 63... Kf7
{[%clk 0:01:01.9]} 64. Rg4 {[%clk 0:00:03.6]} 64... h2 {[%clk 0:01:02.3]} 0-1

[Event "*** Titled Tuesday Blitz"]
[Site "Chess.com"]
[Date "2018.09.04"]
[Round "10"]
[White "chessmaxusa"]
[Black "timator"]
[Result "0-1"]
[WhiteElo "2481"]
[BlackElo "2422"]
[TimeControl "180+2"]
[EndTime "15:53:13 PDT"]
[Termination "timator won by resignation"]

1. d4 {[%clk 0:03:01.9]} 1... Nf6 {[%clk 0:02:04.7]} 2. Nf3 {[%clk 0:03:02.8]}
2... e6 {[%clk 0:02:05.3]} 3. Bf4 {[%clk 0:03:04.1]} 3... b6 {[%clk 0:02:06.1]}
4. e3 {[%clk 0:03:05.5]} 4... Bb7 {[%clk 0:02:07.5]} 5. h3 {[%clk 0:03:06.8]}
5... d5 {[%clk 0:02:09.1]} 6. Be2 {[%clk 0:03:07.8]} 6... Bd6 {[%clk 0:02:10.7]}
7. Ne5 {[%clk 0:03:08.4]} 7... O-O {[%clk 0:02:06.9]} 8. Nd2 {[%clk 0:03:09]}
8... Nbd7 {[%clk 0:02:07.5]} 9. O-O {[%clk 0:03:07.8]} 9... c5 {[%clk
0:02:08.4]} 10. c3 {[%clk 0:03:07.7]} 10... Qe7 {[%clk 0:02:07.8]} 11. Ndf3
{[%clk 0:03:08.2]} 11... h6 {[%clk 0:02:08]} 12. a4 {[%clk 0:03:09.2]} 12... a6
{[%clk 0:02:08.5]} 13. Bd3 {[%clk 0:03:07.5]} 13... Rfd8 {[%clk 0:02:06.3]} 14.
Re1 {[%clk 0:03:01]} 14... Ne4 {[%clk 0:02:07.4]} 15. Nd2 {[%clk 0:02:50.1]}
15... Nxd2 {[%clk 0:01:59.6]} 16. Qxd2 {[%clk 0:02:50.8]} 16... Bxe5 {[%clk
0:01:57]} 17. dxe5 {[%clk 0:02:50.4]} 17... Nb8 {[%clk 0:01:38]} 18. Bc2 {[%clk
0:02:43.7]} 18... Nd7 {[%clk 0:01:34]} 19. Qe2 {[%clk 0:02:43.5]} 19... Nf8
{[%clk 0:01:34.1]} 20. Red1 {[%clk 0:02:41.2]} 20... Ng6 {[%clk 0:01:29.6]} 21.
Bg3 {[%clk 0:02:39.4]} 21... Rac8 {[%clk 0:01:28.5]} 22. Qh5 {[%clk 0:02:33.4]}
22... Qg5 {[%clk 0:01:20]} 23. Qxg5 {[%clk 0:01:59.3]} 23... hxg5 {[%clk
0:01:21.3]} 24. Rd2 {[%clk 0:01:56]} 24... Ne7 {[%clk 0:01:15.4]} 25. Rad1
{[%clk 0:01:53.6]} 25... Kf8 {[%clk 0:01:16]} 26. f3 {[%clk 0:01:50.1]} 26...
Nc6 {[%clk 0:01:09.9]} 27. Bh2 {[%clk 0:01:47]} 27... Ke8 {[%clk 0:01:10.9]} 28.
g4 {[%clk 0:01:46.2]} 28... Ke7 {[%clk 0:01:11.7]} 29. Kg2 {[%clk 0:01:45.5]}
29... f6 {[%clk 0:01:12.9]} 30. exf6+ {[%clk 0:01:40.4]} 30... gxf6 {[%clk
0:01:14.8]} 31. Bg3 {[%clk 0:01:41.8]} 31... d4 {[%clk 0:01:00.3]} 32. exd4
{[%clk 0:01:26.4]} 32... cxd4 {[%clk 0:01:02.2]} 33. Bf2 {[%clk 0:01:26.3]}
33... Ne5 {[%clk 0:00:41.7]} 34. Be4 {[%clk 0:01:15]} 34... Bxe4 {[%clk
0:00:18]} 35. fxe4 {[%clk 0:01:16.9]} 35... dxc3 {[%clk 0:00:17.9]} 36. Rxd8
{[%clk 0:01:10.4]} 36... Rxd8 {[%clk 0:00:19.8]} 37. Rxd8 {[%clk 0:01:10.8]}
37... Kxd8 {[%clk 0:00:21.7]} 38. Bxb6+ {[%clk 0:01:12.2]} 38... Ke7 {[%clk
0:00:22.4]} 39. bxc3 {[%clk 0:01:13.2]} 39... Nc4 {[%clk 0:00:23.1]} 40. Bd4
{[%clk 0:01:13]} 40... e5 {[%clk 0:00:22.5]} 41. Bc5+ {[%clk 0:01:13.2]} 41...
Kd7 {[%clk 0:00:23]} 42. Kf3 {[%clk 0:01:07.8]} 42... Nb2 {[%clk 0:00:23.9]} 43.
a5 {[%clk 0:01:06.7]} 43... Nc4 {[%clk 0:00:24.6]} 44. Bb4 {[%clk 0:01:06]}
44... Ke6 {[%clk 0:00:22.7]} 45. Ke2 {[%clk 0:01:06.6]} 45... Nb2 {[%clk
0:00:23]} 46. Kd2 {[%clk 0:01:07]} 46... Nc4+ {[%clk 0:00:24.1]} 47. Kd3 {[%clk
0:01:08.1]} 47... Nb2+ {[%clk 0:00:25.6]} 48. Ke2 {[%clk 0:01:09]} 48... Nc4
{[%clk 0:00:26.4]} 49. Bc5 {[%clk 0:01:08.5]} 49... Nxa5 {[%clk 0:00:26.7]} 50.
Kd3 {[%clk 0:01:08.3]} 50... Nb7 {[%clk 0:00:22.3]} 51. Ba3 {[%clk 0:01:06.3]}
51... Nd6 {[%clk 0:00:22.9]} 52. c4 {[%clk 0:01:05.9]} 52... Nb7 {[%clk
0:00:24.1]} 53. Kc3 {[%clk 0:01:05.8]} 53... Kd7 {[%clk 0:00:24.5]} 54. Kb4
{[%clk 0:01:06.1]} 54... Kc6 {[%clk 0:00:25.5]} 55. Kc3 {[%clk 0:00:59.2]} 55...
Nc5 {[%clk 0:00:26.6]} 56. Kc2 {[%clk 0:00:51.4]} 56... Nxe4 {[%clk 0:00:26.1]}
57. Be7 {[%clk 0:00:52.7]} 57... Kd7 {[%clk 0:00:27.1]} 58. Bf8 {[%clk
0:00:47.9]} 58... Nf2 {[%clk 0:00:26.1]} 59. Kb3 {[%clk 0:00:48.9]} 59... Nxh3
{[%clk 0:00:25.3]} 60. Kb4 {[%clk 0:00:50.2]} 60... Nf2 {[%clk 0:00:26.5]} 61.
Ka5 {[%clk 0:00:50.8]} 61... Nxg4 {[%clk 0:00:26.7]} 62. Kxa6 {[%clk 0:00:51.8]}
62... Kc6 {[%clk 0:00:25.5]} 63. Be7 {[%clk 0:00:51.1]} 63... e4 {[%clk
0:00:26.2]} 64. Ka5 {[%clk 0:00:50.2]} 64... e3 {[%clk 0:00:27.6]} 65. Bb4
{[%clk 0:00:51.4]} 65... Ne5 {[%clk 0:00:27.3]} 66. Be1 {[%clk 0:00:47.2]} 66...
Nd3 {[%clk 0:00:27.9]} 67. Bc3 {[%clk 0:00:47.5]} 67... e2 {[%clk 0:00:28.7]}
68. Bd2 {[%clk 0:00:47.9]} 68... e1=Q {[%clk 0:00:29.1]} 69. Bxe1 {[%clk
0:00:49.3]} 69... Nxe1 {[%clk 0:00:31]} 0-1